bitfinex/quotes_BTCUSD_20251029
["timestamp","ask_amount","ask_price","bid_price","bid_amount"]
[1761752283050,2.36247148,111920.0,111910.0,0.01197738]
[1761752283474,2.36247148,111920.0,111910.0,0.04502738]
[1761752283686,0.80446229,111920.0,111910.0,0.14184738]
[1761752284119,0.80446229,111920.0,111910.0,0.09390738]
[1761752284322,0.75688753,111920.0,111910.0,0.04502738]
[1761752284531,0.75688753,111920.0,111910.0,0.09296738]
[1761752284739,0.75588753,111920.0,111910.0,0.09296738]
[1761752284983,0.83723376,111920.0,111910.0,0.04502738]
[1761752285192,0.83723663,111920.0,111910.0,0.01197738]
[1761752285404,3.0159357,111920.0,111910.0,0.01197738]
[1761752285604,3.02878995,111920.0,111910.0,0.01197738]
[1761752286048,3.03078995,111920.0,111910.0,0.01197738]
[1761752286202,2.9232938,111920.0,111910.0,0.01197738]
[1761752286812,2.9182938,111920.0,111910.0,0.01197738]
[1761752287208,2.94206691,111920.0,111910.0,0.01197738]
[1761752288080,2.86172068,111920.0,111910.0,0.01197738]
[1761752288615,2.83001734,111920.0,111910.0,0.01197738]
[1761752288846,2.83001734,111920.0,111910.0,0.04357738]
[1761752289052,2.65131827,111920.0,111910.0,0.04357738]
[1761752289444,2.83001734,111920.0,111910.0,0.01197738]
[1761752289752,2.58281734,111920.0,111910.0,0.01197738]
[1761752290137,2.40411827,111920.0,111910.0,0.01197738]
[1761752290501,2.40411827,111920.0,111910.0,0.04357738]
[1761752293059,0.05405785,111920.0,111910.0,0.09137451]
[1761752293272,0.003,111920.0,111910.0,0.35990855]
[1761752293494,0.003,111920.0,111910.0,1.21966476]
[1761752293708,0.02377311,111950.0,111930.0,0.17867992]
[1761752293921,0.03203093,111950.0,111940.0,0.12609714]
[1761752294124,0.00825782,111950.0,111940.0,0.12609714]
[1761752294337,0.06086093,111960.0,111940.0,0.1655713]
[1761752294543,0.06085451,111960.0,111950.0,0.07831]
[1761752294748,0.03202451,111960.0,111950.0,0.12589]
[1761752295799,0.03202451,111960.0,111950.0,0.12609117]
[1761752296217,0.06372785,111960.0,111950.0,0.12609117]
[1761752296424,0.03202451,111960.0,111950.0,0.1472877]
[1761752296625,0.03302451,111960.0,111950.0,0.1472877]
[1761752297018,0.06472785,111960.0,111950.0,0.1472877]
[1761752297163,0.03502451,111960.0,111950.0,0.1472877]
[1761752297567,0.03502451,111960.0,111950.0,0.32593888]
[1761752297775,0.03502451,111960.0,111950.0,0.32573771]
[1761752297776,0.003,111960.0,111950.0,0.32573771]
[1761752297978,0.002,111960.0,111950.0,0.32573771]
[1761752298553,0.002,111960.0,111950.0,0.451739]
[1761752298787,0.002,111960.0,111950.0,0.92921378]
[1761752299008,0.02377311,111980.0,111970.0,0.17861927]
[1761752299229,0.0484858,111980.0,111970.0,0.38247373]
[1761752299437,0.0484858,111980.0,111970.0,0.42805373]
[1761752299438,0.03201067,111980.0,111970.0,0.42805373]
[1761752299859,0.00879393,111990.0,111970.0,0.42805373]
[1761752300100,0.00879393,111990.0,111980.0,0.07968119]
[1761752300311,2.0,111990.0,111980.0,0.07968119]
[1761752300539,0.34,111990.0,111980.0,0.11804544]
[1761752300750,0.34,111990.0,111980.0,0.07046544]
[1761752301407,0.3490124,111990.0,111980.0,0.11804544]
[1761752302248,0.3490124,111990.0,111980.0,0.07046544]
[1761752302701,0.3490124,111990.0,111980.0,0.11804544]
[1761752303124,0.3510124,111990.0,111980.0,0.11804544]
[1761752303750,0.3510124,111990.0,111970.0,0.082271]
[1761752303968,0.3510124,111990.0,111970.0,0.0824622]
[1761752304407,0.3510124,111990.0,111970.0,0.1143722]
[1761752304619,0.3510124,111990.0,111970.0,0.1619522]
[1761752304830,0.3510124,111990.0,111980.0,0.03191]
[1761752305873,2.34,111980.0,111970.0,0.00033477]
[1761752306084,0.34,111980.0,111970.0,0.00014555]
[1761752306964,0.10083141,111990.0,111970.0,0.00214555]
[1761752307174,0.34,111980.0,111970.0,0.00014555]
[1761752308039,0.342,111980.0,111970.0,0.00214555]
[1761752308274,0.002,111980.0,111970.0,0.08045555]
[1761752308482,0.002,111980.0,111970.0,0.33258275]
[1761752308690,0.002,111980.0,111970.0,0.30665482]
[1761752308898,0.002,111980.0,111970.0,0.12803555]
[1761752309104,0.002,111980.0,111970.0,0.30684801]
[1761752309312,0.002,111980.0,111970.0,0.30665482]
[1761752309523,0.002,111980.0,111970.0,0.35518376]
[1761752309950,0.2562124,111990.0,111970.0,0.35318376]
[1761752310169,0.2562124,111990.0,111980.0,0.07949]
[1761752310434,0.2562124,111990.0,111980.0,0.07749]
[1761752311281,0.2572124,111990.0,111980.0,0.07749]
[1761752311493,0.2572124,111990.0,111980.0,0.11260837]
[1761752311974,0.2592124,111990.0,111980.0,0.11579757]
[1761752312493,0.2582124,111990.0,111980.0,0.11579757]
[1761752312717,0.2592124,111990.0,111980.0,0.11579757]
[1761752312965,0.2592124,111990.0,111980.0,0.29440089]
[1761752313228,0.002,111990.0,111980.0,0.3840307]
[1761752313442,0.00123744,112000.0,111990.0,0.17858737]
[1761752313653,0.00123744,112000.0,111990.0,0.44360065]
[1761752313881,0.2474,112040.0,112010.0,0.18746889]
[1761752314107,0.27446821,112040.0,112030.0,0.03191]
[1761752314346,0.25559285,112040.0,112030.0,0.03191]
[1761752314553,0.27446083,112040.0,112030.0,0.07831]
[1761752314763,0.27446083,112040.0,112030.0,0.11339273]
[1761752314979,0.62346437,112040.0,112030.0,0.11339273]
[1761752315190,0.62481205,112040.0,112030.0,0.07831]
[1761752315862,0.34,112030.0,112020.0,0.0464]
[1761752316071,0.34819285,112030.0,112020.0,0.09398]
[1761752316286,0.34819285,112030.0,112020.0,0.39424855]
[1761752316955,0.00819285,112030.0,112020.0,0.39424855]
[1761752317176,0.21177156,112070.0,112040.0,0.17849347]
[1761752317379,0.18814429,112070.0,112060.0,0.07992]
[1761752317628,0.52814429,112070.0,112060.0,0.07992]
[1761752317844,0.20700917,112070.0,112060.0,0.07892]
[1761752318041,0.18814429,112070.0,112060.0,0.10922904]
[1761752318498,0.18914429,112070.0,112060.0,0.07892]
[1761752318916,0.18814429,112070.0,112060.0,0.07892]
[1761752319327,0.18914429,112070.0,112060.0,0.08492]
[1761752319538,2.18914429,112070.0,112060.0,0.006]
[1761752319784,2.19799761,112070.0,112060.0,0.006]
[1761752320000,2.28781662,112070.0,112060.0,0.006]
[1761752320206,0.28781662,112070.0,112060.0,0.03705]
[1761752320421,0.28781662,112070.0,112060.0,0.045642]
[1761752320835,0.28781662,112070.0,112060.0,0.014592]
[1761752321015,0.19799761,112070.0,112060.0,0.045642]
[1761752321433,0.19799761,112070.0,112060.0,0.091322]
[1761752321850,0.19950467,112070.0,112060.0,0.091322]
[1761752322266,0.01150622,112070.0,112060.0,0.091322]
[1761752322893,0.01150622,112070.0,112060.0,0.09123052]
[1761752323105,2.01150622,112070.0,112060.0,0.00590852]
[1761752323540,2.44132523,112070.0,112060.0,0.00590852]
[1761752323958,2.44132523,112070.0,112060.0,0.00581705]
[1761752324599,2.44132523,112070.0,112060.0,0.03686705]
[1761752324827,2.44132523,112070.0,112060.0,0.04544075]
[1761752325240,0.35150622,112070.0,112060.0,0.04544075]
[1761752325698,0.35150622,112070.0,112060.0,0.09112075]
[1761752325909,0.01150622,112070.0,112060.0,0.26959656]
[1761752326185,0.0026529,112070.0,112060.0,0.35941557]
[1761752327388,0.0026529,112070.0,112060.0,0.86307264]
[1761752328036,0.0026529,112070.0,112060.0,0.87307263]
[1761752328877,0.0026529,112070.0,112060.0,0.88307262]
[1761752329091,0.01085268,112070.0,112060.0,0.88407262]
[1761752329311,0.01085291,112070.0,112060.0,0.88407262]
[1761752329535,0.01085291,112070.0,112060.0,0.39559785]
[1761752329954,0.01085291,112070.0,112060.0,0.39659785]
[1761752330367,0.01085291,112070.0,112060.0,0.87307263]
[1761752330572,0.0016529,112070.0,112060.0,0.39978079]
[1761752330804,0.0016529,112070.0,112060.0,0.87725558]
[1761752331007,0.0026529,112070.0,112060.0,0.40978079]
[1761752331240,0.0016529,112070.0,112060.0,0.40078079]
[1761752332111,0.0026529,112070.0,112060.0,0.40978079]
[1761752332316,0.0026529,112070.0,112060.0,0.41078079]
[1761752334464,0.0026529,112070.0,112060.0,0.4007808]
[1761752337635,0.01084881,112070.0,112060.0,0.4007808]
[1761752339238,0.01084881,112070.0,112060.0,0.86825559]
[1761752339465,0.0026529,112070.0,112060.0,0.88825557]
[1761752339644,0.0002,112110.0,112100.0,0.17841213]
[1761752339897,0.00855138,112110.0,112100.0,0.29401492]
[1761752340098,0.00855138,112110.0,112100.0,0.33969492]
[1761752340319,0.00855138,112110.0,112100.0,0.46569621]
[1761752340520,0.03253846,112130.0,112110.0,0.1783924]
[1761752340811,0.03253846,112130.0,112120.0,0.11979303]
[1761752340812,0.37253846,112130.0,112120.0,0.11979303]
[1761752341049,0.04203029,112130.0,112120.0,0.05378862]
[1761752341248,0.069194,112130.0,112120.0,0.05278862]
[1761752341456,0.409194,112130.0,112120.0,0.05278862]
[1761752341674,0.4058034,112130.0,112120.0,0.05278862]
[1761752341896,0.0658034,112130.0,112120.0,0.09846862]
[1761752342104,0.02312535,112130.0,112120.0,0.10831548]
[1761752342540,0.02412535,112130.0,112120.0,0.10831548]
[1761752344253,0.02312535,112130.0,112120.0,0.10831548]
[1761752344459,0.02512535,112130.0,112120.0,0.10831548]
[1761752344889,0.02512535,112130.0,112120.0,0.09846862]
[1761752345300,0.02512535,112130.0,112120.0,0.09850862]
[1761752345927,0.29330875,112130.0,112120.0,4e-05]
[1761752346205,2.69244495,112130.0,112120.0,4e-05]
[1761752346383,2.72415731,112130.0,112120.0,4e-05]
[1761752346624,3.01397632,112130.0,112120.0,4e-05]
[1761752346836,3.03777797,112130.0,112120.0,4e-05]
[1761752347038,2.94795894,112130.0,112120.0,4e-05]
[1761752347254,2.0,112110.0,112090.0,0.09455]
[1761752347489,0.02546,112100.0,112090.0,0.09469595]
[1761752347924,0.02546,112100.0,112090.0,0.12658595]
[1761752349000,0.003,112100.0,112090.0,0.14413155]
[1761752349415,2.0,112100.0,112090.0,0.14413155]
[1761752351664,0.37164675,112120.0,112090.0,0.14417155]
[1761752351891,0.37164675,112120.0,112100.0,0.04787]
[1761752351892,0.34,112110.0,112100.0,0.04787]
[1761752352103,0.35649123,112110.0,112100.0,0.04787]
[1761752352334,0.35649375,112110.0,112100.0,0.09248116]
[1761752352580,0.36474121,112110.0,112100.0,0.09248116]
[1761752352820,0.02474121,112110.0,112100.0,0.09248116]
[1761752353054,0.01424746,112110.0,112100.0,0.09248116]
[1761752353751,0.03074473,112110.0,112100.0,0.09252116]
[1761752353978,0.05620473,112110.0,112100.0,0.04469116]
[1761752354205,0.03074473,112110.0,112100.0,0.09260116]
[1761752354431,0.03074473,112110.0,112100.0,0.09264116]
[1761752354885,0.03074473,112110.0,112100.0,0.18246017]
[1761752355125,0.01424746,112110.0,112100.0,0.3608723]
[1761752355541,0.01424746,112110.0,112100.0,0.18246017]
[1761752355747,0.05622312,112110.0,112100.0,0.09264116]
[1761752355950,0.03970746,112110.0,112100.0,0.09264116]
[1761752356151,0.01424746,112110.0,112100.0,0.3608723]
[1761752356388,0.00824746,112110.0,112100.0,0.18246017]
[1761752356611,0.0247637,112110.0,112100.0,0.18246017]
[1761752357220,0.0247637,112110.0,112100.0,0.09264116]
[1761752357424,0.02477448,112110.0,112100.0,0.09264116]
[1761752357643,0.02563508,112110.0,112100.0,0.09264116]
[1761752358052,0.02863508,112110.0,112100.0,0.09264116]
[1761752358922,2.6623103,112110.0,112100.0,0.00016]
[1761752359151,2.73135659,112110.0,112100.0,0.00016]
[1761752359370,0.34,112100.0,112090.0,0.04961595]
[1761752359613,0.41238527,112100.0,112090.0,0.04961595]
[1761752359821,0.41238527,112100.0,112090.0,0.08277595]
[1761752360028,0.41238527,112100.0,112090.0,0.00026595]
[1761752361401,0.43142502,112100.0,112090.0,0.00026595]
[1761752361884,0.43642502,112100.0,112090.0,0.00026595]
[1761752362797,0.68362502,112100.0,112090.0,0.00026595]
[1761752363852,2.86203715,112100.0,112090.0,0.00026595]
[1761752364061,2.63601423,112100.0,112090.0,0.00026595]
[1761752364276,2.68359458,112100.0,112090.0,0.00026595]
[1761752364909,2.86265223,112100.0,112090.0,0.00026595]
[1761752365460,2.6842401,112100.0,112090.0,0.00026595]
[1761752366636,2.29665975,112100.0,112090.0,0.00026595]
[1761752367264,0.04945975,112100.0,112090.0,0.08129595]
[1761752367471,0.04945975,112100.0,112090.0,0.26785359]
[1761752367472,0.03042,112100.0,112090.0,0.26785359]
[1761752367721,0.03042,112100.0,112090.0,0.3576726]
[1761752367933,0.01389298,112100.0,112090.0,0.3576726]
[1761752368349,0.01389298,112100.0,112090.0,0.39385488]
[1761752368350,0.00889298,112100.0,112090.0,0.39385488]
[1761752368557,0.01189298,112100.0,112090.0,0.39385488]
[1761752369428,0.00889298,112100.0,112090.0,0.39385488]
[1761752369644,0.00064552,112100.0,112090.0,0.39485488]
[1761752370699,0.00064552,112100.0,112090.0,0.39585488]
[1761752372300,0.00064552,112100.0,112090.0,0.3596726]
[1761752372502,0.00064552,112100.0,112090.0,0.18124456]
[1761752372980,0.00064552,112100.0,112090.0,0.09142555]
[1761752373471,0.00064552,112100.0,112090.0,0.08942555]
[1761752373828,0.00164552,112100.0,112090.0,0.26785359]
[1761752374010,0.00989298,112100.0,112090.0,0.26785359]
[1761752374216,0.00989298,112100.0,112090.0,0.08942555]
[1761752374669,0.00164552,112100.0,112090.0,0.08942555]
[1761752376484,0.00164552,112100.0,112090.0,0.26785359]
[1761752376889,0.00164552,112100.0,112090.0,0.08942555]
[1761752379342,0.00164552,112100.0,112090.0,0.26785359]
[1761752379757,0.00164552,112100.0,112090.0,0.08942555]
[1761752381206,0.00164552,112100.0,112090.0,0.26785359]
[1761752381545,0.00164552,112100.0,112090.0,0.26789359]
[1761752381772,0.00164552,112100.0,112090.0,0.26793359]
[1761752381972,0.00164552,112100.0,112090.0,0.08954555]
[1761752382177,0.00164552,112100.0,112090.0,0.08958555]
[1761752382530,0.00164552,112100.0,112090.0,0.26801359]
[1761752384908,0.00164552,112100.0,112090.0,0.3578326]
[1761752385570,0.00164552,112100.0,112090.0,0.17940456]
[1761752385780,0.00164552,112100.0,112090.0,0.08958555]
[1761752385982,0.00164552,112100.0,112090.0,0.04171555]
[1761752386187,0.00064552,112100.0,112090.0,0.04171555]
[1761752386606,0.00064552,112100.0,112090.0,0.04371555]
[1761752386819,0.00064552,112100.0,112090.0,0.04271555]
[1761752387039,0.00064552,112100.0,112090.0,0.03458595]
[1761752387236,0.00164552,112100.0,112090.0,0.08040595]
[1761752388063,0.00164552,112100.0,112090.0,0.03358595]
[1761752388518,0.00164552,112100.0,112090.0,0.07940595]
[1761752394505,0.00164552,112100.0,112090.0,0.03358595]
[1761752394730,0.00164552,112100.0,112090.0,0.10365153]
[1761752395370,0.00164552,112100.0,112090.0,0.07940595]
[1761752396115,0.00992292,112100.0,112090.0,0.03358595]
[1761752396868,0.00992292,112100.0,112090.0,0.07940595]
[1761752397780,0.01905559,112110.0,112090.0,0.07741595]
[1761752398027,0.01656664,112110.0,112090.0,0.07741595]
[1761752398244,2.01656664,112110.0,112090.0,0.08820017]
[1761752398464,0.03562223,112110.0,112090.0,0.08820017]
[1761752398682,0.01656664,112110.0,112090.0,0.08820017]
[1761752398903,2.01656664,112110.0,112090.0,0.08820017]
[1761752399124,0.03562223,112110.0,112090.0,0.08820017]
[1761752399348,0.01656664,112110.0,112090.0,0.08820017]
[1761752399590,0.25468373,112120.0,112090.0,0.08820017]
[1761752399797,0.34,112100.0,112090.0,0.08820017]
[1761752400023,0.35905559,112100.0,112090.0,0.08820017]
[1761752401637,0.35905559,112100.0,112090.0,0.26662821]
[1761752401845,0.35905559,112100.0,112090.0,0.08820017]
[1761752404008,0.35905559,112100.0,112090.0,0.04238017]
[1761752404208,0.35905559,112100.0,112090.0,0.00042595]
[1761752405328,0.35905559,112100.0,112090.0,0.03159595]
[1761752406648,0.35905559,112100.0,112090.0,0.07741595]
[1761752407312,0.01905559,112100.0,112090.0,0.25584399]
[1761752407524,0.35905559,112110.0,112090.0,0.12388737]
[1761752407738,0.37562971,112110.0,112100.0,0.03284]
[1761752408153,0.37562971,112110.0,112090.0,0.09271737]
[1761752408404,0.37584483,112110.0,112090.0,0.27113856]
[1761752408642,0.37584483,112110.0,112100.0,0.03284]
[1761752409505,0.39971341,112110.0,112100.0,0.03284]
[1761752409731,0.40800121,112110.0,112100.0,0.05285864]
[1761752410000,0.40800121,112110.0,112100.0,0.27750077]
[1761752410212,0.40800121,112110.0,112100.0,0.27754077]
[1761752410667,0.41000121,112110.0,112100.0,0.27758077]
[1761752410887,0.40800121,112110.0,112100.0,0.27758077]
[1761752411100,0.39342709,112110.0,112100.0,0.05297864]
[1761752411321,0.41000421,112110.0,112100.0,0.00012]
[1761752411528,2.44176636,112110.0,112100.0,0.00012]
[1761752412385,0.44176636,112110.0,112100.0,0.07758]
[1761752412613,0.41000421,112110.0,112100.0,0.25599213]
[1761752412854,0.41000421,112110.0,112100.0,0.29947669]
[1761752413278,0.36955851,112110.0,112100.0,0.3892957]
[1761752414359,0.02955851,112110.0,112100.0,0.3892957]
[1761752414563,0.01050292,112110.0,112100.0,0.3892957]
[1761752417608,0.00021512,112110.0,112100.0,0.3892957]
[1761752418649,0.00021512,112110.0,112100.0,0.3902957]
[1761752419305,0.00021512,112110.0,112100.0,0.3912957]
[1761752421009,0.00021512,112110.0,112100.0,0.42747798]
[1761752423410,0.00021512,112110.0,112100.0,0.3912957]
[1761752423620,0.00021512,112110.0,112100.0,0.3913357]
[1761752424087,0.01457512,112110.0,112100.0,0.3460757]
[1761752424302,0.01457512,112110.0,112100.0,0.25629669]
[1761752424524,0.01457512,112110.0,112100.0,0.12322456]
[1761752424732,0.01457512,112110.0,112100.0,0.00232]
[1761752424946,0.03687464,112110.0,112100.0,0.00132]
[1761752425166,0.03687464,112110.0,112100.0,0.00032]
[1761752426422,0.04515498,112110.0,112100.0,0.00032]
[1761752426864,0.04515498,112110.0,112100.0,0.03248]
[1761752427073,0.04515498,112110.0,112100.0,0.05814336]
[1761752427285,0.02285584,112110.0,112100.0,0.23655549]
[1761752427501,0.00021512,112110.0,112100.0,0.3716745]
[1761752427729,0.05169124,112130.0,112100.0,0.3716745]
[1761752427945,2.0,112130.0,112120.0,0.03216]
[1761752428159,2.0,112130.0,112120.0,0.04489]
[1761752428374,2.0,112130.0,112120.0,0.09019]
[1761752429424,0.004,112130.0,112120.0,0.09019]
[1761752429635,0.004,112130.0,112120.0,0.04489]
[1761752430053,0.02229554,112130.0,112120.0,0.04489]
[1761752430501,0.02229554,112130.0,112120.0,0.04493]
[1761752430932,2.0,112130.0,112120.0,0.09027]
[1761752431148,2.0,112130.0,112120.0,0.09031]
[1761752431364,2.0,112130.0,112120.0,0.09035]
[1761752431609,2.002,112130.0,112120.0,0.09035]
[1761752431824,0.002,112130.0,112120.0,0.2687303]
[1761752432039,0.002,112130.0,112120.0,0.09035]
[1761752432246,0.002,112130.0,112120.0,0.09039]
[1761752432893,0.002,112130.0,112120.0,0.2687703]
[1761752433117,0.002,112130.0,112120.0,0.09039]
[1761752433334,0.002,112130.0,112120.0,0.03236]
[1761752433552,0.02429554,112130.0,112120.0,0.0002]
[1761752433766,0.02472569,112130.0,112120.0,0.0002]
[1761752434203,2.6145447,112130.0,112120.0,0.0002]
[1761752434428,2.61061355,112130.0,112120.0,0.0002]
[1761752434635,2.43224916,112130.0,112120.0,0.0002]
[1761752435053,2.61061355,112130.0,112120.0,0.0002]
[1761752437675,2.43224916,112130.0,112120.0,0.0002]
[1761752437881,2.46401131,112130.0,112120.0,0.0002]
[1761752439782,2.49140771,112130.0,112120.0,0.0002]
[1761752441428,2.6697721,112130.0,112120.0,0.0002]
[1761752441623,2.49140771,112130.0,112120.0,0.0002]
[1761752442075,2.8697721,112130.0,112120.0,0.0002]
[1761752442510,2.83800995,112130.0,112120.0,0.0002]
[1761752442709,2.87419223,112130.0,112120.0,0.0002]
[1761752442921,0.71839621,112110.0,112100.0,0.00032]
[1761752443132,2.86745997,112110.0,112100.0,0.00032]
[1761752443573,2.83561162,112110.0,112100.0,0.00032]
[1761752443776,2.45721541,112110.0,112100.0,0.00032]
[1761752443985,2.66744403,112110.0,112100.0,0.00032]
[1761752445897,2.49404782,112110.0,112100.0,0.00032]
[1761752446122,2.15404782,112110.0,112100.0,0.00032]
[1761752446332,2.49404782,112110.0,112100.0,0.00032]
[1761752446964,2.3723964,112110.0,112100.0,0.00032]
[1761752447603,2.3723964,112110.0,112100.0,0.03084]
[1761752447808,2.3723964,112110.0,112100.0,0.00032]
[1761752448518,2.3713964,112110.0,112100.0,0.00032]
[1761752448730,2.3673964,112110.0,112100.0,0.00032]
[1761752450226,2.3673964,112110.0,112100.0,0.03084]
[1761752451067,2.3673964,112110.0,112100.0,0.0387196]
[1761752453537,2.3673964,112110.0,112100.0,0.0081996]
[1761752454003,2.3673964,112110.0,112100.0,0.00032]
[1761752457444,2.3673964,112110.0,112100.0,0.03084]
[1761752460650,0.3673964,112110.0,112100.0,0.07837]
[1761752460862,0.3673964,112110.0,112100.0,0.25678213]
[1761752461083,0.35910486,112110.0,112100.0,0.03084]
[1761752461521,0.35910486,112110.0,112100.0,0.05656238]
[1761752462394,2.63560115,112110.0,112100.0,0.00032]
[1761752462614,2.63560115,112110.0,112100.0,0.00232]
[1761752462825,2.66743356,112110.0,112100.0,0.00232]
[1761752463938,2.66743356,112110.0,112100.0,0.00032]
[1761752464361,2.66843356,112110.0,112100.0,0.00032]
[1761752464787,2.66943356,112110.0,112100.0,0.00032]
[1761752465313,2.66843356,112110.0,112100.0,0.00032]
[1761752466017,2.68430022,112110.0,112100.0,0.00032]
[1761752466223,2.68730022,112110.0,112100.0,0.00032]
[1761752467000,2.77711923,112110.0,112100.0,0.00032]
[1761752467234,2.8329899,112110.0,112100.0,0.00032]
[1761752467462,2.81078153,112110.0,112100.0,0.00032]
[1761752468101,2.7546611,112110.0,112100.0,0.00032]
[1761752470913,2.70698861,112110.0,112100.0,0.00032]
[1761752471363,2.68730256,112110.0,112100.0,0.00032]
[1761752476095,2.67902149,112110.0,112100.0,0.00032]
[1761752476391,2.68730229,112110.0,112100.0,0.00032]
[1761752480264,2.67902149,112110.0,112100.0,0.00032]
[1761752480474,2.68730155,112110.0,112100.0,0.00032]
[1761752482976,2.54070028,112110.0,112100.0,0.03167]
[1761752483179,2.40317986,112110.0,112100.0,0.03167]
[1761752483383,2.40317986,112110.0,112100.0,0.00032]
[1761752483583,2.49299887,112110.0,112100.0,0.00032]
[1761752483749,2.67139508,112110.0,112100.0,0.00032]
[1761752483995,2.67039508,112110.0,112100.0,0.00032]
[1761752484199,2.67139508,112110.0,112100.0,0.00032]
[1761752484422,2.66839508,112110.0,112100.0,0.00032]
[1761752485607,2.48999887,112110.0,112100.0,0.00032]
[1761752485807,2.63660014,112110.0,112100.0,0.00032]
[1761752486133,2.63760014,112110.0,112100.0,0.00032]
[1761752486941,2.45920393,112110.0,112100.0,0.00032]
[1761752487185,2.66939508,112110.0,112100.0,0.00032]
[1761752487734,2.69322833,112110.0,112100.0,0.00032]
[1761752488333,2.66939508,112110.0,112100.0,0.00032]
[1761752489704,2.71709649,112110.0,112100.0,0.00032]
[1761752495941,2.33413488,112110.0,112100.0,0.00032]
[1761752496573,2.30233994,112110.0,112100.0,0.00032]
[1761752497358,2.33413488,112110.0,112100.0,0.00032]
[1761752497796,2.67413488,112110.0,112100.0,0.00032]
[1761752498103,2.7491351,112110.0,112100.0,0.00032]
[1761752498349,2.65029022,112110.0,112100.0,0.00032]
[1761752500212,2.67413975,112110.0,112100.0,0.00032]
[1761752500430,2.65029022,112110.0,112100.0,0.00032]
[1761752503065,2.6864725,112110.0,112100.0,0.00032]
[1761752503292,2.82399292,112110.0,112100.0,0.00032]
[1761752503716,2.79219798,112110.0,112100.0,0.00032]
[1761752504588,2.79219798,112110.0,112090.0,0.00042595]
[1761752504589,2.75459441,112100.0,112090.0,0.00042595]
[1761752504808,2.51842804,112090.0,112080.0,0.03042625]
[1761752505027,2.68457807,112090.0,112080.0,0.03042625]
[1761752505241,2.80706064,112090.0,112080.0,0.03042625]
[1761752505460,0.94110753,112080.0,112070.0,0.00123603]
[1761752505754,3.08097011,112080.0,112070.0,0.00123603]
[1761752505883,0.34,112020.0,112000.0,0.0488]
[1761752506101,0.02446,112010.0,111990.0,0.28149387]
[1761752506320,0.02446,112010.0,111990.0,0.41824817]
[1761752506739,0.02446,112010.0,112000.0,0.03265]
[1761752506973,0.03467967,112010.0,112000.0,0.03265]
[1761752507192,0.03467967,112010.0,112000.0,0.03313627]
[1761752507627,0.03467967,112010.0,112000.0,0.21170769]
[1761752507848,0.03467967,112010.0,112000.0,0.06126474]
[1761752508273,0.03467967,112010.0,112000.0,0.24683616]
[1761752508913,0.01021967,112010.0,112000.0,0.29205616]
[1761752509119,0.34,112020.0,112010.0,0.17854115]
[1761752509327,0.34,112020.0,112010.0,0.27069644]
[1761752509534,0.02446,112030.0,112020.0,0.17853954]
[1761752509802,0.02446,112030.0,112020.0,0.25640954]
[1761752510011,0.03490409,112030.0,112020.0,0.25640954]
[1761752511285,0.03490409,112030.0,112020.0,0.26040954]
[1761752512326,0.03490409,112030.0,112020.0,0.28853801]
[1761752512777,0.03490409,112030.0,112020.0,0.26148623]
[1761752514790,0.01044409,112030.0,112020.0,0.26148623]
[1761752514989,2.0,112040.0,112020.0,0.26148623]
[1761752515197,0.34,112030.0,112020.0,0.26040954]
[1761752515984,0.35146837,112030.0,112020.0,0.26040954]
[1761752516670,0.01146837,112030.0,112020.0,0.26040954]
[1761752517106,0.34,112030.0,112020.0,0.26040954]
[1761752518166,0.34,112030.0,112020.0,0.26933651]
[1761752518345,0.35144877,112030.0,112020.0,0.26933651]
[1761752518775,0.37590877,112030.0,112020.0,0.26933651]
[1761752519408,0.03590877,112030.0,112020.0,0.22411651]
[1761752519621,0.03590877,112030.0,112020.0,0.26933651]
[1761752520061,0.03590877,112030.0,112020.0,0.22411651]
[1761752520686,0.03590877,112030.0,112020.0,0.26933651]
[1761752521160,0.03590877,112030.0,112020.0,0.2704132]
[1761752521852,0.03590877,112030.0,112020.0,0.08294669]
[1761752522064,0.37590877,112030.0,112020.0,0.26148623]
[1761752522508,0.37590877,112030.0,112020.0,0.00507669]
[1761752522714,2.37590877,112030.0,112020.0,0.00507669]
[1761752523364,2.37590877,112030.0,112020.0,0.03772669]
[1761752523802,2.37590877,112030.0,112020.0,0.00507669]
[1761752525185,2.64425138,112030.0,112020.0,0.00507669]
[1761752525409,2.46572778,112030.0,112020.0,0.00507669]
[1761752525863,2.64425138,112030.0,112020.0,0.00507669]
[1761752526097,2.67149025,112030.0,112020.0,0.00507669]
[1761752527038,2.49296665,112030.0,112020.0,0.00507669]
[1761752527275,2.67149025,112030.0,112020.0,0.00507669]
[1761752528680,2.76130926,112030.0,112020.0,0.00507669]
[1761752529162,2.99749154,112030.0,112020.0,0.00507669]
[1761752529382,3.02131241,112030.0,112020.0,0.00507669]
[1761752529859,3.22131241,112030.0,112020.0,0.00507669]
[1761752530142,3.25307357,112030.0,112020.0,0.00507669]
[1761752530628,3.22131241,112030.0,112020.0,0.00507669]
[1761752530868,3.22131241,112030.0,112020.0,0.00107669]
[1761752531102,3.22131241,112030.0,112020.0,0.00507669]
[1761752531339,3.25307357,112030.0,112020.0,0.00107669]
[1761752531589,3.05307357,112030.0,112020.0,0.00107669]
[1761752531822,3.02131241,112030.0,112020.0,0.00307669]
[1761752532493,3.01689129,112030.0,112020.0,0.00307669]
[1761752532753,3.05407357,112030.0,112020.0,0.00307669]
[1761752534265,3.05407357,112030.0,112020.0,0.00311669]
[1761752534687,3.05407357,112030.0,112020.0,0.00315669]
[1761752534897,3.0302527,112030.0,112020.0,0.00319669]
[1761752535113,3.07789445,112030.0,112020.0,0.00323669]
[1761752535588,3.06644568,112030.0,112020.0,0.00323669]
[1761752536015,3.06544568,112030.0,112020.0,0.00323669]
[1761752536679,3.06644568,112030.0,112020.0,0.00323669]
[1761752537321,3.06644568,112030.0,112020.0,0.00123669]
[1761752537744,3.04998867,112030.0,112020.0,0.00123669]
[1761752538230,2.66904692,112030.0,112020.0,0.00123669]
[1761752538453,2.67004692,112030.0,112020.0,0.00123669]
[1761752539098,2.58022791,112030.0,112020.0,0.00123669]
[1761752539344,2.58380755,112030.0,112020.0,0.00123669]
[1761752539980,2.92380755,112030.0,112020.0,0.00123669]
[1761752540185,2.93553127,112030.0,112020.0,0.00123669]
[1761752541763,2.92268984,112030.0,112020.0,0.00123669]
[1761752542003,2.92268984,112030.0,112000.0,0.00068627]
[1761752542004,2.75473776,112010.0,112000.0,0.00068627]
[1761752542221,2.92712158,112010.0,112000.0,0.00068627]
[1761752542910,2.9307016,112010.0,112000.0,0.00068627]
[1761752543182,2.9317016,112010.0,112000.0,0.00068627]
[1761752543398,2.94645687,112010.0,112000.0,0.00068627]
[1761752543616,2.92274575,112010.0,112000.0,0.00068627]
[1761752544484,2.92174575,112010.0,112000.0,0.00268627]
[1761752544699,2.92174575,112010.0,112000.0,0.00068627]